bitfinex/quotes_SOLUSD_20211001
["timestamp","ask_amount","ask_price","bid_price","bid_amount"]
[1633110916123,2.1,161.09,160.98,0.0212976]
[1633110916725,2.1,161.09,160.99,25.14726504]
[1633110916923,2.1,161.09,161.0,0.0212976]
[1633110917325,2.1,161.09,161.0,29.09276603]
[1633110917524,2.1,161.09,161.01,0.0212976]
[1633110917929,2.1,161.09,161.0,29.07146843]
[1633110919927,2.1,161.12,161.0,29.07146843]
[1633110920928,2.1,161.12,160.99,25.14726504]
[1633110922330,2.1,161.12,160.97,25.63614615]
[1633110923530,470.14979179,161.1,160.97,25.63614615]
[1633110923730,2.1,161.09,160.97,25.63614615]
[1633110924532,2.1,161.09,160.95,0.0212976]
[1633110924731,2.1,161.09,160.94,25.14726504]
[1633110924930,2.1,161.09,160.92,0.0212976]
[1633110924931,2.1,161.09,160.91,75.7895]
[1633110925736,2.1,161.09,160.89,33.31829013]
[1633110925932,23.21,161.09,160.9,6.1178811]
[1633110926132,48.62410787,161.08,160.89,6.11812324]
[1633110926331,2.58274885,161.07,160.89,6.11812324]
[1633110926532,2.52795743,161.03,160.86,3.59260092]
[1633110926733,2.1,161.02,160.86,3.59260092]
[1633110927534,0.1,161.02,160.86,126.35425887]
[1633110928136,0.1,161.02,160.86,105.0]
[1633110928535,62.14,161.02,160.86,105.0]
[1633110929135,0.1,161.02,160.86,105.0]
[1633110929337,0.1,161.02,160.89,3.59479661]
[1633110929536,0.1,161.02,160.9,3.59423599]
[1633110929735,0.1,161.02,160.91,31.16890291]
[1633110929936,0.1,161.02,160.91,27.57476635]
[1633110931939,88.56254803,160.85,160.82,0.0012976]
[1633110932139,48.62770499,160.76,160.75,374.49549839]
[1633110932740,48.62770499,160.76,160.64,2.12088]
[1633110932941,48.62770499,160.76,160.67,28.98774073]
[1633110933141,48.62770499,160.76,160.68,2.9521535]
[1633110933641,48.62770499,160.76,160.64,2.12088]
[1633110934243,48.62770499,160.76,160.65,23.06029175]
[1633110936243,46.12770499,160.76,160.65,23.06029175]
[1633110936642,0.00088,160.84,160.76,23.96770499]
[1633110936844,2.55062031,161.15,160.77,2.1]
[1633110936845,2.12088,160.94,160.77,2.1]
[1633110937041,76.357,161.01,160.78,29.53142416]
[1633110937042,2.1,160.97,160.78,29.53142416]
[1633110937243,2.1,160.97,160.79,2.1204176]
[1633110937441,76.357,161.01,160.8,0.0204176]
[1633110937641,2.1,161.02,160.81,2.1]
[1633110937841,2.1,161.02,160.82,23.88836905]
[1633110938042,2.1,161.02,160.83,2.1204176]
[1633110938242,2.1,161.02,160.82,92.27116371]
[1633110938243,27.29868555,161.01,160.82,18.34276371]
[1633110938441,27.29868555,161.01,160.81,0.0204176]
[1633110938442,2.1,161.0,160.81,0.0204176]
[1633110938646,2.1,161.0,160.79,0.0204176]
[1633110939243,2.1,161.0,160.79,28.64285919]
[1633110939444,2.1,161.0,160.8,0.0204176]
[1633110940045,2.1,161.0,160.82,23.8317653]
[1633110940847,412.75652947,160.98,160.82,23.8317653]
[1633110941045,2.1,160.97,160.82,23.8317653]
[1633110941246,2.1,160.97,160.81,27.24220396]
[1633110942247,2.1,160.97,160.82,29.83095946]
[1633110942650,412.75652947,160.98,160.83,29.36262156]
[1633110942849,412.75652947,160.98,160.84,0.0204176]
[1633110943047,412.75652947,160.98,160.85,25.04245628]
[1633110943448,2.1,160.97,160.84,0.0204176]
[1633110943648,2.1,160.97,160.76,26.06770499]
[1633110943851,2.1,160.97,160.77,0.0204176]
[1633110944049,2.42079445,160.94,160.77,0.0204176]
[1633110944347,2.1,160.93,160.77,0.0204176]
[1633110944547,2.1,160.92,160.77,0.0204176]
[1633110945448,2.1,160.92,160.76,54.09762295]
[1633110945651,384.95096251,160.92,160.76,54.09762295]
[1633110946847,384.95096251,160.92,160.76,23.96770499]
[1633110947049,2.52043485,160.9,160.76,23.96770499]
[1633110947249,2.52210492,160.85,160.76,23.96770499]
[1633110947450,2.1,160.84,160.76,23.96770499]
[1633110948651,64.14,160.84,160.76,23.96770499]
[1633110948851,2.1,160.84,160.76,23.96770499]
[1633110950550,21.298,160.84,160.76,23.96770499]
[1633110953657,378.85505975,160.8,160.76,23.96770499]
[1633110955760,378.85505975,160.8,160.76,23.46770499]
[1633110957861,10.21221271,160.76,160.65,2.1]
[1633110959068,10.21221271,160.76,160.65,30.47633481]
[1633110959966,10.21221271,160.76,160.66,8.49358799]
[1633110960165,10.21221271,160.76,160.67,0.0204176]
[1633110960768,2.1,160.86,160.76,10.21221271]
[1633110960968,2.1,160.9,160.76,31.53621271]
[1633110961174,357.87975459,160.87,160.76,9.71221271]
[1633110961767,0.00961537,160.77,160.76,9.71221271]
[1633110961970,0.00961537,160.77,160.76,114.73309271]
[1633110962168,0.00961537,160.77,160.76,116.83309271]
[1633110962371,355.77975459,160.87,160.79,0.02088]
[1633110962571,355.77975459,160.87,160.8,2.1]
[1633110962771,355.77975459,160.87,160.81,29.09062514]
[1633110962970,355.77975459,160.87,160.82,2.1]
[1633110963171,3.24512553,160.97,160.87,133.41052983]
[1633110963372,2.1,161.01,160.87,18.91810691]
[1633110963570,2.1,161.05,160.88,27.95061214]
[1633110963770,2.1,161.05,160.89,2.1]
[1633110964369,2.1,161.05,160.89,18.59990814]
[1633110964970,2.1,161.05,160.89,18.62078814]
[1633110965171,2.1,161.11,160.89,42.49815305]
[1633110965370,5.34270453,161.1,160.9,0.18768313]
[1633110965569,2.1,161.09,160.91,2.1]
[1633110965772,2.1,161.09,160.92,30.19250933]
[1633110965971,2.1,161.09,160.93,2.12088]
[1633110966370,2.1,161.09,160.93,18.62078814]
[1633110966771,2.1,161.09,160.93,42.49815305]
[1633110967170,1.6,161.09,160.93,42.49815305]
[1633110967370,1.6,161.09,160.93,42.47727305]
[1633110972576,0.02088,161.08,160.93,42.47727305]
[1633110972773,2.1,161.07,160.93,42.47727305]
[1633110972973,2.12088,161.07,160.93,2.1]
[1633110974474,2.12088,161.07,160.92,30.17162933]
[1633110974677,3.24320668,161.06,160.92,30.17162933]
[1633110974873,2.1,161.05,160.92,30.17162933]
[1633110975274,0.02088,161.04,160.92,30.17162933]
[1633110975476,2.1,161.03,160.88,23.87736491]
[1633110975873,2.1,161.03,160.87,118.91810691]
[1633110976474,2.1,161.03,160.88,27.12025711]
[1633110977074,2.1,161.03,160.87,118.91810691]
[1633110977278,0.02088,161.02,160.87,118.91810691]
[1633110977474,2.1,161.01,160.87,118.91810691]
[1633110977675,0.02088,161.0,160.87,118.91810691]
[1633110977876,2.1,160.99,160.87,118.91810691]
[1633110978279,16.715,160.99,160.87,118.91810691]
[1633110978678,62.06088,160.98,160.87,118.91810691]
[1633110978879,2.12088,160.97,160.87,118.91810691]
[1633110979476,2.12088,160.97,160.73,0.02088]
[1633110979477,107.0,160.96,160.73,0.02088]
[1633110979678,2.1,160.95,160.73,0.02088]
[1633110979880,2.92051809,160.94,160.73,0.02088]
[1633110980077,2.49342754,160.91,160.71,0.02088]
[1633110980279,2.1,160.9,160.71,2.12088]
[1633110980478,2.1,160.9,160.72,21.88424438]
[1633110980679,2.1,160.9,160.72,21.86336438]
[1633110981881,2.73420507,160.9,160.72,21.86336438]
[1633110982079,2.1,160.9,160.72,21.86336438]
[1633110984086,2.1,160.9,160.73,0.02088]
[1633110984286,2.1,160.9,160.73,2.12088]
[1633110984485,2.1,160.9,160.74,0.02088]
[1633110984686,2.1,160.9,160.75,24.48147433]
[1633110984886,2.1,160.9,160.75,24.50235433]
[1633110991593,2.1,160.9,160.87,100.0]
[1633110992598,3.2456573,160.89,160.87,100.0]
[1633110995497,2.1,160.9,160.87,100.0]
[1633110997599,162.67801911,160.63,160.61,368.76763556]
[1633110997801,2.1,160.68,160.61,38.53484606]
[1633110998001,32.17185066,160.66,160.61,38.53484606]
[1633110998201,14.83334544,160.61,160.45,2.1]
[1633110998402,17.27049785,160.61,160.37,5.98136722]
[1633110998602,2.1,160.6,160.42,2.1]
[1633110998803,2.1,160.6,160.38,25.27527161]
[1633110998804,2.1,160.6,160.44,2.1]
[1633111000000,14.83334544,160.61,160.47,2.1]
[1633111000201,14.83334544,160.61,160.48,51.61465446]
[1633111000404,0.00334544,160.61,160.51,2.57935604]
[1633111000601,0.00334544,160.61,160.52,30.12268038]
[1633111001001,0.00334544,160.61,160.53,2.1]
[1633111001602,0.00334544,160.61,160.53,32.94150985]
[1633111002002,5.76,160.69,160.53,32.94150985]
[1633111002204,0.0421776,160.77,160.55,21.44676276]
[1633111002421,2.1,160.76,160.56,2.1]
[1633111002608,2.1,160.78,160.58,2.41773939]
[1633111002806,2.1,160.8,160.59,32.33847968]
[1633111003007,2.1,160.82,160.6,1.22052957]
[1633111003205,2.1,160.82,160.61,2.1]
[1633111003405,2.1,160.82,160.62,27.94342931]
[1633111003604,2.1,160.82,160.63,2.1]
[1633111004006,2.1,160.82,160.64,43.29218433]
[1633111004205,2.1,160.82,160.65,31.72540551]
[1633111004606,0.0421776,160.81,160.65,60.06679972]
[1633111004806,2.1,160.8,160.66,30.44139421]
[1633111005427,0.0421776,160.79,160.66,30.44139421]
[1633111005609,2.1,160.78,160.66,30.44139421]
[1633111005807,0.0421776,160.77,160.66,30.44139421]
[1633111006006,2.1421776,160.77,160.66,30.44139421]
[1633111008009,2.1421776,160.77,160.6,2.1]
[1633111008212,0.0421776,160.76,160.6,2.1]
[1633111008430,2.1,160.75,160.6,2.1]
[1633111008610,0.0421776,160.74,160.6,2.1]
[1633111008810,2.1421776,160.74,160.6,2.1]
[1633111009010,0.0421776,160.73,160.6,30.14999227]
[1633111009210,2.1,160.72,160.6,30.14999227]
[1633111009812,0.0421776,160.71,160.6,30.14999227]
[1633111010012,2.1,160.7,160.6,30.14999227]
[1633111010413,2.1421776,160.73,160.6,30.14999227]
[1633111010815,2.1421776,160.73,160.6,60.0136087]
[1633111011213,2.1,160.73,160.6,60.0136087]
[1633111011612,2.1,160.73,160.6,29.86361643]
[1633111012013,0.0421776,160.72,160.6,29.86361643]
[1633111012811,0.0421776,160.72,160.58,25.887231]
[1633111013212,0.0421776,160.72,160.56,2.1]
[1633111013414,2.1,160.71,160.56,2.1]
[1633111013613,0.0421776,160.7,160.56,2.1]
[1633111013812,2.1421776,160.7,160.56,2.1]
[1633111014012,0.0421776,160.69,160.56,2.1]
[1633111014434,0.0421776,160.69,160.56,31.57482896]
[1633111016715,0.0421776,160.69,160.56,61.00511206]
[1633111017517,2.1,160.7,160.56,61.00511206]
[1633111019417,2.1,160.7,160.56,31.5302831]
[1633111019820,2.1,160.7,160.69,100.0]
[1633111031030,458.98960558,160.74,160.69,100.0]
[1633111031629,2.1,160.77,160.69,100.0]
[1633111035430,418.19670979,160.82,160.69,100.0]
[1633111035628,2.1,160.81,160.69,100.0]
[1633111042635,418.19670979,160.82,160.7,2.61]
[1633111042835,418.19670979,160.82,160.71,28.40625206]
[1633111043637,0.02088,160.95,160.93,6.42833088]
[1633111043835,2.61,160.99,160.93,6.42833088]
[1633111044037,2.61,161.02,160.93,6.42833088]
[1633111044439,694.27364933,161.04,160.93,6.42833088]
[1633111044636,26.00901045,161.01,160.94,2.61]
[1633111047456,26.00901045,161.01,160.93,6.42833088]
[1633111047639,26.00901045,161.01,160.93,8.53833088]
[1633111051844,2.13088,161.1,160.94,21.8270626]
[1633111052845,28.54935296,161.09,160.94,21.8270626]
[1633111053046,28.54935296,161.09,160.95,2.11]
[1633111053846,28.54935296,161.09,161.0,100.0]
[1633111060951,6.45796399,161.0,160.93,6.42833088]
[1633111061753,62.04,160.99,160.93,6.42833088]
[1633111061955,6.63933065,160.98,160.93,6.42833088]
[1633111062356,6.63933065,160.98,160.93,0.00833088]
[1633111062571,68.67933065,160.98,160.93,0.00833088]
[1633111062969,77.5887,160.97,160.93,0.00833088]
[1633111063172,139.6287,160.97,160.93,0.00833088]
[1633111063572,77.5887,160.97,160.93,0.00833088]
[1633111063969,2.11,160.97,160.93,0.00833088]
[1633111064169,546.43537235,161.0,160.93,0.00833088]
[1633111064373,546.43537235,161.0,160.93,2.11833088]
[1633111064772,6.45796399,161.0,160.93,2.11833088]
[1633111065174,6.45796399,161.0,160.93,0.00833088]
[1633111079689,23.04591117,160.98,160.93,0.00833088]
[1633111082289,3.24484713,160.99,160.93,0.00833088]
[1633111083891,3.24484713,160.99,160.93,2.11833088]
[1633111084090,6.45796399,161.0,160.93,2.11833088]
[1633111084291,6.45796399,161.0,160.94,31.4408257]
[1633111084492,6.45796399,161.0,160.95,2.11]
[1633111084691,2.11,161.13,161.0,6.44963311]
[1633111084692,23.629617,161.13,161.0,6.44963311]
[1633111084892,2.11,161.13,161.0,6.44963311]
[1633111085092,3.24262269,161.12,161.0,6.44963311]
[1633111085495,3.24262269,161.12,161.0,8.55963311]
[1633111085898,21.99490909,161.11,161.0,36.74199708]
[1633111091704,21.99490909,161.11,161.0,8.55963311]
[1633111093105,21.99490909,161.11,161.0,29.87679814]
[1633111093307,25.23746083,161.11,161.0,29.87679814]
[1633111095108,25.23746083,161.11,161.0,8.55963311]
[1633111095508,21.99490909,161.11,161.0,8.55963311]
[1633111095711,21.99490909,161.11,161.0,40.00045881]
[1633111096109,21.99490909,161.11,161.0,68.54415674]
[1633111097109,21.99490909,161.11,161.0,40.00045881]
[1633111098111,21.99490909,161.11,161.0,69.2611483]
[1633111099712,77.8555,161.15,161.0,69.2611483]
[1633111100415,3.24205596,161.14,161.0,69.2611483]
[1633111100613,27.14997325,161.13,161.0,69.2611483]
[1633111102715,360.90108678,161.16,161.01,29.04052659]
[1633111102915,360.90108678,161.16,161.02,2.11]
[1633111103116,0.02088,161.24,161.02,51.10984939]
[1633111103317,0.02088,161.27,161.03,75.46703834]
[1633111103517,0.02088,161.27,161.05,0.9358029]
[1633111103716,4.6004999,161.27,161.06,2.11]
[1633111103920,0.02088,161.27,161.06,48.70955028]
[1633111104117,0.02088,161.27,161.07,0.7472006]
[1633111104317,0.02088,161.32,161.08,54.92]
[1633111104525,0.02088,161.34,161.09,1.01301678]
[1633111104716,0.02088,161.34,161.11,52.81]
[1633111104918,23.04771521,161.37,161.12,31.34428227]
[1633111105117,23.04771521,161.37,161.13,1.47986077]
[1633111105319,23.04771521,161.37,161.14,2.13088]
[1633111105517,23.04771521,161.37,161.15,27.32650316]
[1633111105717,23.04771521,161.37,161.16,2.13088]
[1633111105917,2.11,161.42,161.17,0.36003869]
[1633111106119,0.02088,161.43,161.18,2.11]
[1633111106319,0.02088,161.43,161.19,0.02088]
[1633111106523,0.02088,161.43,161.2,2.32349949]
[1633111106720,5.34781974,161.42,161.2,2.13088]
[1633111106921,21.46156768,161.41,161.21,27.26372431]
[1633111107119,2.13088,161.4,161.22,2.11]
[1633111107319,0.02088,161.39,161.22,2.11]
[1633111108319,2.13088,161.4,161.22,29.5616377]
[1633111108723,2.13088,161.4,161.22,56.64024118]
[1633111111921,2.13088,161.4,161.22,29.5616377]
[1633111112323,0.02088,161.4,161.22,27.4516377]
[1633111112727,2.6,161.39,161.23,2.6]
[1633111112927,2.6,161.39,161.24,23.79751451]
[1633111113125,2.6,161.39,161.25,2.6]
[1633111113525,3.23781974,161.42,161.25,2.6]
[1633111113925,559.38990229,161.41,161.25,2.6]
[1633111115427,579.89490229,161.41,161.25,2.6]
[1633111115628,62.04,161.4,161.25,2.6]
[1633111115828,3.51925037,161.38,161.25,2.6]
[1633111116028,65.55925037,161.38,161.25,2.6]
[1633111116227,2.43112915,161.36,161.22,2.6]
[1633111116430,27.34912915,161.36,161.22,2.6]
[1633111116627,27.37000915,161.36,161.22,2.6]
[1633111117028,26.08436788,161.35,161.22,2.6]
[1633111117430,88.12436788,161.35,161.22,2.6]
[1633111118028,2.6,161.34,161.22,2.6]
[1633111118229,0.02088,161.33,161.17,2.6]
[1633111118429,2.6,161.32,161.17,2.6]
[1633111118630,2.50882954,161.31,161.17,2.6]
[1633111118829,3.51925037,161.3,161.17,2.6]
[1633111119633,19.03515037,161.3,161.17,2.6]
[1633111120030,2.49047192,161.25,161.17,2.6]
[1633111120230,5.09047192,161.25,161.12,2.6]
[1633111120629,67.13047192,161.25,161.12,2.6]
[1633111121029,26.08436788,161.24,161.12,2.6]
[1633111121231,64.64,161.23,161.12,2.6]
[1633111121430,2.6,161.23,161.12,2.6]
[1633111123031,64.64,161.23,161.12,2.6]
[1633111123933,64.64,161.23,161.08,2.6]
[1633111124534,2.55381295,161.21,161.08,2.6]
[1633111124736,23.16281295,161.21,161.08,2.6]
[1633111124934,77.5651,161.2,161.05,2.6]
[1633111125136,23.47636909,161.15,161.05,2.6]
[1633111125336,39.88136909,161.15,161.05,2.6]
[1633111127538,39.88136909,161.15,161.06,28.47717705]
[1633111127937,39.88136909,161.15,161.05,2.6]
[1633111131040,2.6,161.14,161.01,2.6]
[1633111133041,64.64,161.14,161.01,2.6]
[1633111133242,64.64,161.14,161.0,6.44963311]
[1633111133649,2.6,161.14,161.0,6.44963311]
[1633111134444,2.6,161.14,161.02,21.68382286]
[1633111134846,2.6,161.14,161.03,0.02088]
[1633111136047,2.6,161.14,161.01,2.6]
[1633111136249,25.95,161.14,161.01,2.6]
[1633111136847,25.95,161.14,161.0,6.44963311]
[1633111137449,87.99,161.14,161.0,6.44963311]
[1633111138053,25.95,161.14,161.0,6.44963311]
[1633111139248,87.99,161.14,161.0,6.44963311]
[1633111143552,2.5135085,161.13,161.0,6.44963311]
[1633111143752,2.6,161.12,161.0,6.44963311]
[1633111144151,5.84342093,161.12,161.0,6.44963311]
[1633111144352,6.12724916,161.11,161.0,6.44963311]
[1633111144553,2.6,161.1,161.0,6.44963311]
[1633111151556,518.83605609,161.13,161.0,9.04963311]
[1633111151759,2.6,161.13,161.0,9.04963311]
[1633111151959,2.6,161.13,161.01,6.31173555]
[1633111152157,2.6,161.18,161.02,2.6]
[1633111152357,2.6,161.18,161.03,9.46059396]
[1633111152557,2.6,161.18,161.04,2.62088]
[1633111152758,2.6,161.18,161.05,33.11875024]
[1633111152957,2.6,161.18,161.06,8.75745855]
[1633111153162,2.6,161.18,161.06,2.6]
[1633111154160,4.14024369,161.17,161.06,2.6]
[1633111155161,4.14024369,161.17,161.03,3.20051086]
[1633111155360,2.6,161.16,161.02,2.6]
[1633111155576,2.6,161.16,161.0,6.44963311]
[1633111156179,2.6,161.16,161.0,34.77888741]
[1633111156978,3.2422468,161.15,161.0,34.77888741]
[1633111157178,27.98612012,161.14,161.0,34.77888741]
[1633111157578,2.6,161.14,161.0,34.77888741]
[1633111157778,2.6,161.14,161.01,6.30268656]
[1633111157977,2.6,161.14,161.01,8.90268656]
[1633111158177,2.6,161.14,161.01,2.6]
[1633111158577,27.71431498,161.13,161.01,2.6]
[1633111160779,2.6,161.12,161.01,2.6]
[1633111160983,26.208,161.12,161.01,2.6]
[1633111162980,26.208,161.12,161.02,21.28297939]
[1633111163182,2.6,161.12,161.02,21.28297939]
[1633111164180,2.6,161.12,161.0,6.44963311]
[1633111164383,23.138,161.12,161.0,6.44963311]
[1633111165881,22.638,161.12,161.0,6.44963311]
[1633111166882,22.638,161.12,161.0,5.94963311]
[1633111168083,22.638,161.12,161.0,3.36963311]
[1633111168283,3.36963311,161.0,160.96,3.55445724]
[1633111168484,26.42063311,161.0,160.94,3.57421582]
[1633111169083,4.96930328,160.99,160.93,3.58142418]
[1633111169285,4.96930328,160.99,160.92,3.59459165]
[1633111170089,4.96930328,160.99,160.91,3.59908273]
[1633111171290,4.96930328,160.99,160.9,3.59931492]
[1633111172091,4.96930328,160.99,160.9,25.17818188]
[1633111172491,4.96930328,160.99,160.91,6.92363962]
[1633111172892,4.96930328,160.99,160.89,3.59929485]
[1633111173692,4.96930328,160.99,160.87,31.49961733]
[1633111173693,4.96930328,160.99,160.88,10.52162148]
[1633111174094,4.96930328,160.99,160.89,3.59880873]
[1633111174295,5.96963311,161.0,160.9,26.4452168]
[1633111174694,5.96963311,161.0,160.91,10.48073219]
[1633111174893,5.96963311,161.0,160.92,3.56947053]
[1633111175096,5.96963311,161.0,160.93,3.55744217]
[1633111175295,5.96963311,161.0,160.94,23.20310641]
[1633111176094,5.96963311,161.0,160.92,3.57800526]
[1633111176295,5.96963311,161.0,160.91,3.58568806]
[1633111176894,5.96963311,161.0,160.9,3.59838097]
[1633111177096,12.41210527,161.0,160.9,28.54890067]
[1633111177294,12.41210527,161.0,160.91,6.92173394]
[1633111177495,5.96963311,161.0,160.91,6.92173394]
[1633111179297,5.96963311,161.0,160.9,24.9505197]
[1633111180098,5.96963311,161.0,160.91,6.92107599]
[1633111180297,15.5361,161.08,160.92,81.0]
[1633111180498,2.62088,161.07,160.92,81.0]
[1633111180697,2.6,161.07,160.92,81.0]
[1633111181097,27.26034246,161.06,160.92,81.0]
[1633111181297,2.6,161.05,160.93,25.59990191]
[1633111181700,2.6,161.05,160.92,81.0]
[1633111182698,2.6,161.05,160.93,27.37486985]
[1633111183097,2.6,161.05,160.92,81.0]
[1633111183698,64.64,161.05,160.9,3.49170147]
[1633111183897,64.64,161.05,160.87,5.20560581]
[1633111183898,2.52730645,161.03,160.87,10.2581998]
[1633111184099,5.29781215,161.01,160.87,10.2581998]
[1633111184302,2.6,161.0,160.87,10.2581998]
[1633111185100,2.47885009,160.97,160.87,10.2581998]
[1633111185299,2.6,160.96,160.84,3.59980873]
[1633111185499,2.6,160.96,160.83,0.0212976]
[1633111185700,78.321,160.96,160.83,0.0212976]
[1633111185899,103.26647871,160.95,160.81,3.59982501]
[1633111186099,2.6,160.94,160.8,3.600071]
[1633111186300,19.88405083,160.94,160.8,3.600071]
[1633111186499,5.37155726,160.92,160.8,3.600071]
[1633111186702,2.6,160.91,160.8,3.600071]
[1633111186902,2.6,160.91,160.81,3.60000414]
[1633111187301,2.6,160.91,160.8,10.52283959]
[1633111187704,64.64,160.91,160.8,6.92347306]
[1633111187902,2.6,160.91,160.79,3.62103525]
[1633111188507,5.12087808,160.91,160.8,3.59947148]
[1633111188710,5.12087808,160.91,160.79,3.59970953]
[1633111188711,87.49492891,160.91,160.79,3.59970953]
[1633111188908,21.68315909,160.89,160.74,3.6220271]
[1633111189108,2.6,160.88,160.74,3.6220271]
[1633111189307,29.29300092,160.88,160.74,0.0212976]
[1633111189511,47.22705175,160.88,160.74,0.0212976]
[1633111189709,62.04,160.87,160.74,0.0212976]
[1633111189910,2.6,160.86,160.74,0.0212976]
[1633111190109,2.6,160.86,160.71,3.60031243]
[1633111190510,7.63082605,160.85,160.71,31.27534231]
[1633111190709,2.6,160.84,160.72,6.92234394]
[1633111191110,64.64,160.84,160.72,10.52243927]
[1633111191310,64.64,160.84,160.73,0.0212976]
[1633111191311,2.6,160.84,160.73,0.0212976]
[1633111191511,2.6,160.84,160.72,0.0212976]
[1633111191811,21.68315909,160.82,160.72,0.0212976]
[1633111192013,64.64,160.81,160.69,103.59935118]
[1633111192211,2.6,160.81,160.7,6.92046961]
[1633111193014,2.6,160.81,160.69,100.0]
[1633111194112,5.02743259,160.81,160.69,100.0]
[1633111194515,62.04,160.8,160.69,100.0]
[1633111194717,2.6,160.79,160.69,100.0]
[1633111194913,7.63082605,160.78,160.69,100.0]
[1633111195115,2.6,160.77,160.69,100.0]
[1633111200920,2.6,160.77,160.7,6.91557686]
[1633111201121,2.6,160.84,160.78,2.6]
[1633111201322,64.32412168,160.95,160.79,107.0]
[1633111201521,2.6,160.93,160.8,26.19782489]
[1633111201721,2.6,160.94,160.81,0.0421776]
[1633111201922,2.6,160.93,160.81,0.0421776]
[1633111202123,2.6,160.92,160.81,0.0421776]
[1633111202324,2.6,160.91,160.81,0.0421776]
[1633111204524,25.53719618,160.91,160.81,0.0421776]
[1633111204721,2.6,160.91,160.81,0.0421776]
[1633111204924,2.6,160.91,160.8,26.19782489]
[1633111205722,28.60211945,160.9,160.8,26.19782489]
[1633111206324,28.60211945,160.9,160.78,2.6]
[1633111206725,2.6,160.89,160.78,2.6]
[1633111206923,2.6,160.89,160.78,2.6421776]
[1633111208123,2.6,160.89,160.78,27.15161617]
[1633111208324,19.469,160.89,160.78,27.15161617]
[1633111208926,19.469,160.89,160.78,2.6421776]
[1633111209527,19.469,160.89,160.78,2.6]
[1633111211331,19.469,160.89,160.79,6.91934703]
[1633111211529,19.469,160.89,160.78,2.6]
[1633111211731,19.469,160.89,160.78,27.85745269]
[1633111211931,19.469,160.89,160.79,6.91937075]
[1633111213133,19.469,160.89,160.78,2.6]
[1633111213336,3.24632805,160.88,160.78,2.6]
[1633111213532,2.6,160.87,160.78,2.6]
[1633111215636,2.6,160.78,160.73,3.60108857]
[1633111215839,2.6,160.77,160.73,3.60108857]
[1633111216037,2.6,160.77,160.68,3.60223071]
[1633111216038,28.0220261,160.76,160.68,3.60223071]
[1633111216238,28.0220261,160.76,160.67,0.0421776]
[1633111216239,2.6,160.75,160.67,0.0421776]
[1633111216637,2.6,160.75,160.64,345.5724106]
[1633111216638,2.6,160.75,160.64,0.0421776]
[1633111217238,2.6,160.75,160.66,28.5375509]
[1633111217438,2.6,160.75,160.64,0.0421776]
[1633111218241,5.2,160.78,160.68,0.0421776]
[1633111218440,5.2,160.78,160.68,3.64316771]
[1633111218640,5.2,160.78,160.7,6.61793532]
[1633111219039,5.2,160.78,160.71,28.30254139]
[1633111220842,5.2,160.78,160.72,6.61777387]
[1633111221039,5.2,160.78,160.72,10.21840969]
[1633111221239,5.2,160.78,160.72,6.61777387]
[1633111221444,5.2,160.78,160.71,28.34471899]
[1633111222042,26.014,160.78,160.71,0.0421776]
[1633111222241,26.014,160.78,160.7,0.0421776]
[1633111223842,26.014,160.78,160.7,6.65947322]
[1633111224043,26.014,160.78,160.71,3.64258997]
[1633111224243,26.014,160.78,160.71,0.0421776]
[1633111224645,33.46208645,160.78,160.71,0.0421776]
[1633111225042,33.46208645,160.78,160.69,129.55745184]
[1633111225445,26.014,160.78,160.69,129.55745184]
[1633111226046,5.2,160.78,160.69,129.55745184]
[1633111226645,5.2,160.78,160.7,6.61792927]
[1633111227247,74.96531092,160.78,160.7,6.61792927]
[1633111227645,74.96531092,160.78,160.69,100.0]
[1633111227846,97.85631092,160.78,160.69,100.0]
[1633111228646,35.81631092,160.78,160.69,100.0]
[1633111228846,5.2,160.78,160.69,100.0]
[1633111229647,26.111,160.78,160.69,100.0]